bitfinex/quotes_SOLUSD_20241231
["timestamp","ask_amount","ask_price","bid_price","bid_amount"]
[1735677544074,12.73847429,194.66,194.59,12.73847429]
[1735677545499,12.73847429,194.65,194.61,20.0]
[1735677548098,12.73847429,194.66,194.59,38.03225829]
[1735677549096,12.73847429,194.66,194.59,25.293784]
[1735677549391,9.30852236,194.71,194.59,25.293784]
[1735677549613,12.73847429,194.65,194.59,25.293784]
[1735677554607,1.6171,194.73,194.6,12.73847429]
[1735677554786,12.73847429,194.67,194.6,25.58487429]
[1735677555505,12.73847429,194.66,194.6,12.8464]
[1735677555679,1.6171,194.73,194.6,25.58487429]
[1735677555883,12.73847429,194.67,194.6,25.58487429]
[1735677556903,12.73847429,194.66,194.6,12.8464]
[1735677557901,1.6171,194.73,194.6,25.58487429]
[1735677558102,1.6171,194.73,194.61,12.73847429]
[1735677558406,12.73847429,194.67,194.6,25.58487429]
[1735677558590,1.6629,194.79,194.66,56.51535829]
[1735677558902,12.73847429,194.75,194.68,12.73847429]
[1735677559113,12.73847429,194.74,194.67,12.73847429]
[1735677559428,12.73847429,194.72,194.66,32.73847429]
[1735677559672,12.73847429,194.67,194.6,20.74967429]
[1735677559789,5.0,194.76,194.6,8.0112]
[1735677559790,12.73847429,194.65,194.6,8.0112]
[1735677559993,12.73847429,194.65,194.63,20.0]
[1735677560404,12.73847429,194.66,194.63,20.0]
[1735677562225,12.73847429,194.64,194.63,20.0]
[1735677562811,12.73847429,194.65,194.63,20.0]
[1735677563721,12.73847429,194.66,194.63,20.0]
[1735677566394,12.73847429,194.67,194.63,20.0]
[1735677566794,12.73847429,194.66,194.63,20.0]
[1735677568332,8.13408854,194.66,194.63,20.0]
[1735677569913,8.13408854,194.69,194.63,20.0]
[1735677570134,8.13408854,194.7,194.63,20.0]
[1735677570296,8.13408854,194.7,194.63,8.13408854]
[1735677571503,8.13408854,194.7,194.64,12.8442]
[1735677572116,8.13408854,194.69,194.64,12.8442]
[1735677572320,8.13408854,194.69,194.6,8.0112]
[1735677572321,8.13408854,194.68,194.65,20.0]
[1735677574122,8.13408854,194.68,194.64,20.0]
[1735677574825,8.13408854,194.69,194.64,20.0]
[1735677576505,8.13408854,194.7,194.63,8.13408854]
[1735677576701,8.13408854,194.69,194.65,20.0]
[1735677577521,8.13408854,194.68,194.64,20.0]
[1735677578109,8.13408854,194.69,194.64,20.0]
[1735677578807,8.13408854,194.7,194.64,20.0]
[1735677579598,8.13408854,194.69,194.64,20.0]
[1735677579803,36.612984,194.77,194.63,20.0]
[1735677579804,8.13408854,194.68,194.63,20.0]
[1735677580704,8.13408854,194.68,194.64,20.0]
[1735677581825,8.13408854,194.68,194.63,20.0]
[1735677582027,8.13408854,194.67,194.63,20.0]
[1735677582725,8.13408854,194.64,194.55,7.8772]
[1735677582927,8.13408854,194.61,194.57,12.8485]
[1735677583241,8.13408854,194.61,194.55,7.8772]
[1735677583411,8.13408854,194.61,194.58,20.0]
[1735677584227,8.13408854,194.6,194.58,20.0]
[1735677585405,8.13408854,194.6,194.55,7.8772]
[1735677585606,8.13408854,194.61,194.55,7.8772]
[1735677587022,8.13408854,194.56,194.51,1.5648]
[1735677587531,1.5923,194.67,194.57,20.0]
[1735677587704,8.13408854,194.61,194.57,20.0]
[1735677592930,1.5923,194.67,194.52,12.8521]
[1735677593114,8.13408854,194.6,194.53,8.13408854]
[1735677593440,8.13408854,194.6,194.56,20.0]
[1735677597114,8.13408854,194.62,194.57,20.0]
[1735677597335,8.13408854,194.63,194.57,20.0]
[1735677597930,81.3,194.7,194.6,8.13408854]
[1735677598124,8.13408854,194.67,194.6,8.13408854]
[1735677599123,8.13408854,194.67,194.6,20.98058854]
[1735677599841,8.13408854,194.69,194.62,8.13408854]
[1735677600020,1.6229,194.72,194.62,8.13408854]
[1735677600221,8.13408854,194.71,194.64,8.13408854]
[1735677600543,8.13408854,194.7,194.64,20.0]
[1735677601034,8.13408854,194.71,194.64,20.0]
[1735677601538,8.13408854,194.71,194.64,28.13408854]
[1735677602538,8.13408854,194.73,194.65,12.843]
[1735677602744,8.13408854,194.73,194.66,8.13408854]
[1735677602932,1.5008,194.77,194.66,1.5937]
[1735677603126,8.0601241,194.8,194.68,28.13408854]
[1735677603332,8.13408854,194.75,194.68,28.13408854]
[1735677605916,8.13408854,194.72,194.68,20.0]
[1735677606121,8.13408854,194.71,194.66,1.5937]
[1735677606343,8.13408854,194.7,194.66,20.0]
[1735677606844,8.13408854,194.69,194.63,12.8443]
[1735677607228,8.13408854,194.7,194.63,20.97838854]
[1735677610643,8.13408854,194.69,194.63,12.8443]
[1735677610846,8.13408854,194.68,194.64,20.0]
[1735677611027,8.13408854,194.68,194.61,9.72778854]
[1735677611449,8.13408854,194.69,194.61,9.72778854]
[1735677612248,8.13408854,194.69,194.62,8.13408854]
[1735677614259,8.13408854,194.68,194.61,9.72778854]
[1735677614467,8.13408854,194.66,194.61,1.5937]
[1735677615350,8.13408854,194.63,194.6,20.0]
[1735677615728,8.13408854,194.63,194.59,20.0]
[1735677616367,8.13408854,194.63,194.56,22.58508854]
[1735677616541,8.13408854,194.62,194.56,14.451]
[1735677617530,8.13408854,194.63,194.56,14.451]
[1735677617745,8.13408854,194.64,194.57,8.13408854]
[1735677618050,8.13408854,194.63,194.56,22.58508854]
[1735677618938,8.13408854,194.63,194.54,43.776884]
[1735677619143,8.13408854,194.63,194.55,8.13408854]
[1735677619346,8.13408854,194.62,194.54,51.91097254]
[1735677620151,8.13408854,194.62,194.54,64.76147254]
[1735677620751,8.13408854,194.62,194.55,8.13408854]
[1735677620954,8.13408854,194.63,194.55,8.13408854]
[1735677623949,8.13408854,194.63,194.57,8.13408854]
[1735677624343,8.13408854,194.63,194.54,56.627384]
[1735677624544,8.13408854,194.63,194.56,8.13408854]
[1735677624853,1.598,194.71,194.6,8.13408854]
[1735677625038,8.13408854,194.69,194.61,8.13408854]
[1735677625757,5.14394854,194.69,194.61,8.13408854]
[1735677628672,1.598,194.71,194.62,8.13408854]
[1735677628837,1.598,194.71,194.64,20.0]
[1735677629156,8.13408854,194.72,194.64,28.13408854]
[1735677629469,1.598,194.76,194.65,8.13408854]
[1735677629643,8.13408854,194.72,194.64,28.13408854]
[1735677629841,8.13408854,194.71,194.64,28.13408854]
[1735677630378,8.13408854,194.71,194.64,20.0]
[1735677630659,8.13408854,194.71,194.64,28.13408854]
[1735677631357,8.13408854,194.72,194.65,8.13408854]
[1735677633563,8.13408854,194.71,194.64,40.97808854]
[1735677634369,8.13408854,194.69,194.65,20.0]
[1735677634867,8.13408854,194.69,194.64,20.0]
[1735677635165,8.13408854,194.69,194.65,20.0]
[1735677635373,8.13408854,194.7,194.65,20.0]
[1735677636456,8.13408854,194.69,194.65,20.0]
[1735677636851,8.13408854,194.7,194.65,20.0]
[1735677637969,8.13408854,194.69,194.65,20.0]
[1735677638167,1.598,194.76,194.65,20.0]
[1735677638353,1.598,194.76,194.66,8.13408854]
[1735677638557,8.13408854,194.74,194.66,8.13408854]
[1735677639446,8.13408854,194.73,194.66,8.13408854]
[1735677639983,1.598,194.76,194.66,8.13408854]
[1735677640281,8.13408854,194.74,194.66,8.13408854]
[1735677641475,8.13408854,194.73,194.66,8.13408854]
[1735677643167,8.13408854,194.72,194.65,8.13408854]
[1735677643585,8.13408854,194.73,194.67,20.0]
[1735677643908,8.13408854,194.72,194.65,8.13408854]
[1735677644069,8.13408854,194.7,194.64,7.9994]
[1735677644389,8.13408854,194.69,194.64,7.9994]
[1735677645593,8.13408854,194.69,194.61,20.98008854]
[1735677645892,8.13408854,194.69,194.62,8.13408854]
[1735677647081,8.13408854,194.68,194.61,20.98008854]
[1735677647395,8.13408854,194.69,194.62,8.13408854]
[1735677647596,8.13408854,194.7,194.63,8.13408854]
[1735677649471,6.6264,194.75,194.63,8.13408854]
[1735677649671,8.13408854,194.71,194.64,8.13408854]
[1735677649883,8.13408854,194.7,194.63,8.13408854]
[1735677650575,8.13408854,194.72,194.65,8.13408854]
[1735677655286,8.13408854,194.72,194.64,12.8436]
[1735677655287,8.13408854,194.71,194.66,20.0]
[1735677655882,8.13408854,194.72,194.64,28.13408854]
[1735677656893,8.13408854,194.71,194.64,28.13408854]
[1735677658091,8.13408854,194.72,194.64,28.13408854]
[1735677658277,8.13408854,194.72,194.65,8.13408854]
[1735677658805,8.13408854,194.72,194.64,28.13408854]
[1735677659009,8.13408854,194.73,194.65,8.13408854]
[1735677659184,8.13408854,194.72,194.64,28.13408854]
[1735677661001,21.598,194.76,194.66,8.13408854]
[1735677661204,8.13408854,194.74,194.66,8.13408854]
[1735677662087,1.598,194.76,194.68,8.13408854]
[1735677662291,8.13408854,194.75,194.68,8.13408854]
[1735677664088,8.13408854,194.75,194.67,20.97568854]
[1735677664289,1.598,194.76,194.68,8.13408854]
[1735677664493,1.5034,194.82,194.71,8.13408854]
[1735677664697,8.13408854,194.79,194.72,8.13408854]
[1735677666026,8.13408854,194.78,194.71,20.97328854]
[1735677667308,8.13408854,194.78,194.7,28.13408854]
[1735677667510,8.13408854,194.78,194.71,20.0]
[1735677667890,8.13408854,194.78,194.71,28.13408854]
[1735677668102,1.5034,194.82,194.72,8.13408854]
[1735677668292,1.5034,194.82,194.73,8.13408854]
[1735677668497,6.4827,194.83,194.76,8.13408854]
[1735677668498,8.13408854,194.83,194.76,8.13408854]
[1735677668699,8.13408854,194.84,194.77,8.13408854]
[1735677671111,8.13408854,194.83,194.76,31.91097254]
[1735677672428,8.13408854,194.84,194.76,31.91097254]
[1735677672887,1.5034,194.87,194.78,8.13408854]
[1735677673090,8.13408854,194.85,194.77,8.13408854]
[1735677673494,8.13408854,194.84,194.76,31.91097254]
[1735677674011,8.13408854,194.84,194.76,8.13408854]
[1735677674216,8.13408854,194.82,194.77,20.0]
[1735677674514,8.13408854,194.81,194.77,20.0]
[1735677674711,8.13408854,194.81,194.74,8.13408854]
[1735677674913,8.13408854,194.78,194.7,19.4808]
[1735677675100,8.13408854,194.78,194.71,8.13408854]
[1735677675297,8.13408854,194.76,194.69,1.5357]
[1735677675606,8.13408854,194.76,194.72,20.0]
[1735677676017,8.13408854,194.76,194.69,9.66978854]
[1735677676215,8.13408854,194.76,194.69,8.13408854]
[1735677677914,8.13408854,194.77,194.7,8.13408854]
[1735677678220,8.13408854,194.77,194.71,20.0]
[1735677679597,8.13408854,194.73,194.64,12.844]
[1735677679804,8.13408854,194.72,194.64,12.844]
[1735677680007,8.13408854,194.74,194.67,8.13408854]
[1735677680297,8.13408854,194.76,194.69,8.13408854]
[1735677680698,8.13408854,194.77,194.7,8.13408854]
[1735677680919,8.13408854,194.75,194.68,28.13408854]
[1735677682932,8.13408854,194.74,194.7,20.0]
[1735677683224,8.13408854,194.73,194.66,20.97648854]
[1735677683421,8.13408854,194.71,194.63,12.8447]
[1735677683613,8.13408854,194.68,194.61,8.13408854]
[1735677684228,8.13408854,194.68,194.64,20.0]
[1735677684523,8.13408854,194.68,194.61,8.13408854]
[1735677684907,8.13408854,194.68,194.64,20.0]
[1735677685906,8.13408854,194.69,194.62,28.13408854]
[1735677686107,8.13408854,194.7,194.63,8.13408854]
[1735677687429,8.13408854,194.7,194.62,8.13408854]
[1735677687618,8.13408854,194.7,194.65,20.0]
[1735677688930,7.7257,194.73,194.65,20.0]
[1735677688931,8.13408854,194.69,194.65,20.0]
[1735677691936,8.13408854,194.69,194.66,20.0]
[1735677693533,8.13408854,194.71,194.66,20.0]
[1735677694118,8.13408854,194.72,194.66,20.0]
[1735677696536,7.7257,194.73,194.66,20.0]
[1735677696737,8.13408854,194.72,194.66,20.0]
[1735677698437,8.13408854,194.71,194.66,20.0]
[1735677701213,7.7257,194.73,194.61,20.96998854]
[1735677701418,8.13408854,194.68,194.61,8.13408854]
[1735677701639,8.13408854,194.68,194.64,20.0]
[1735677702235,8.13408854,194.67,194.6,25.6825]
[1735677702449,8.13408854,194.65,194.58,8.13408854]
[1735677702751,8.13408854,194.65,194.61,20.0]
[1735677703240,8.13408854,194.64,194.57,12.8487]
[1735677703426,8.13408854,194.64,194.56,8.13408854]
[1735677704520,8.13408854,194.64,194.59,20.0]
[1735677705830,1.5621,194.72,194.62,8.13408854]
[1735677706027,8.13408854,194.69,194.62,8.13408854]
[1735677706241,8.13408854,194.68,194.61,28.13408854]
[1735677706420,8.13408854,194.67,194.6,8.13408854]
[1735677707733,8.13408854,194.64,194.57,20.98278854]
[1735677707939,8.13408854,194.64,194.57,8.13408854]
[1735677708247,8.13408854,194.64,194.6,20.0]
[1735677708546,8.13408854,194.63,194.56,8.13408854]
[1735677709239,8.13408854,194.62,194.57,20.0]
[1735677709447,8.13408854,194.62,194.55,8.13408854]
[1735677710523,8.13408854,194.63,194.56,8.13408854]
[1735677711143,8.13408854,194.63,194.59,20.0]
[1735677711339,9.69618854,194.64,194.59,20.0]
[1735677711730,1.5621,194.64,194.59,20.0]
[1735677711934,1.5621,194.64,194.6,20.0]
[1735677712128,7.6285,194.69,194.6,28.13408854]
[1735677712332,8.13408854,194.67,194.6,28.13408854]
[1735677712837,15.76258854,194.69,194.61,8.13408854]
[1735677713748,1.5621,194.69,194.63,8.13408854]
[1735677715729,1.5621,194.69,194.62,8.13408854]
[1735677716447,9.69618854,194.69,194.61,8.13408854]
[1735677716649,8.13408854,194.66,194.62,20.0]
[1735677717852,8.13408854,194.67,194.62,20.0]
[1735677718354,8.13408854,194.68,194.62,20.0]
[1735677720935,8.13408854,194.66,194.62,20.0]
[1735677721342,8.13408854,194.68,194.62,20.0]
[1735677725176,1.5621,194.69,194.63,43.776884]
[1735677725353,8.13408854,194.72,194.64,8.13408854]
[1735677725568,8.13408854,194.72,194.65,8.13408854]
[1735677726851,8.13408854,194.73,194.65,8.13408854]
[1735677727252,8.13408854,194.71,194.67,20.0]
[1735677727650,8.13408854,194.71,194.64,23.776884]
[1735677728054,8.13408854,194.71,194.64,31.91097254]
[1735677728238,8.13408854,194.71,194.63,20.97848854]
[1735677728444,8.13408854,194.7,194.63,12.8444]
[1735677728846,8.13408854,194.7,194.63,8.13408854]
[1735677729961,1.5136,194.75,194.67,20.0]
[1735677730154,8.13408854,194.73,194.67,20.0]
[1735677731367,6.2654,194.78,194.68,31.91097254]
[1735677731672,8.13408854,194.75,194.68,31.91097254]
[1735677731974,8.13408854,194.77,194.7,20.97418854]
[1735677732264,8.13408854,194.78,194.71,8.13408854]
[1735677732445,8.13408854,194.76,194.7,12.8401]
[1735677732646,8.13408854,194.78,194.7,20.97418854]
[1735677734266,20.87609062,194.84,194.71,8.13408854]
[1735677734445,8.13408854,194.79,194.71,8.13408854]
[1735677735151,8.13408854,194.79,194.72,8.13408854]
[1735677735351,8.13408854,194.79,194.71,8.13408854]
[1735677735553,8.13408854,194.78,194.73,20.0]
[1735677735944,8.13408854,194.74,194.65,8.3112]
[1735677736149,8.13408854,194.72,194.65,8.3112]
[1735677736362,8.13408854,194.72,194.68,20.0]
[1735677736563,8.13408854,194.71,194.68,20.0]
[1735677736754,8.13408854,194.71,194.65,8.3112]
[1735677738076,8.13408854,194.7,194.67,20.0]
[1735677738272,12.70515668,194.7,194.67,20.0]
[1735677738651,12.70515668,194.7,194.66,20.0]
[1735677738851,12.70515668,194.68,194.61,12.8459]
[1735677739974,12.70515668,194.67,194.61,12.8459]
[1735677741172,12.70515668,194.66,194.62,20.0]
[1735677741674,12.70515668,194.65,194.62,20.0]
[1735677742254,12.70515668,194.66,194.62,20.0]
[1735677742656,12.70515668,194.64,194.61,20.0]
[1735677742865,12.70515668,194.64,194.56,6.0533]
[1735677743062,12.70515668,194.64,194.6,20.0]
[1735677743260,12.70515668,194.64,194.57,12.70515668]
[1735677743556,12.70515668,194.62,194.58,20.0]
[1735677743753,6.5649,194.67,194.5,6.0533]
[1735677743754,12.70515668,194.6,194.51,12.8522]
[1735677743957,12.70515668,194.6,194.53,12.70515668]
[1735677744157,12.70515668,194.6,194.56,20.0]
[1735677744359,12.70515668,194.6,194.53,12.70515668]
[1735677744685,12.70515668,194.61,194.57,20.0]
[1735677745677,12.70515668,194.6,194.56,20.0]
[1735677746273,12.70515668,194.61,194.57,20.0]
[1735677746473,12.70515668,194.62,194.57,20.0]
[1735677747784,12.70515668,194.61,194.57,20.0]
[1735677748595,12.70515668,194.61,194.54,12.70515668]
[1735677748881,12.70515668,194.6,194.53,12.70515668]
[1735677749083,12.70515668,194.6,194.52,36.48204068]
[1735677749289,12.70515668,194.58,194.51,12.8522]
[1735677749597,12.70515668,194.56,194.49,12.70515668]
[1735677750680,36.621484,194.64,194.48,25.55965668]
[1735677750681,12.70515668,194.55,194.48,25.55965668]
[1735677750880,12.70515668,194.55,194.51,20.0]
[1735677751185,12.70515668,194.53,194.44,12.8568]
[1735677751380,12.70515668,194.55,194.47,12.70515668]
[1735677751687,14.34265668,194.56,194.52,20.0]
[1735677751990,12.70515668,194.55,194.52,20.0]
[1735677752181,12.70515668,194.54,194.5,20.0]
[1735677752487,12.70515668,194.55,194.51,20.0]
[1735677752864,12.70515668,194.53,194.51,20.0]
[1735677753165,1.6375,194.56,194.42,12.8587]
[1735677753166,12.70515668,194.52,194.42,12.8587]
[1735677753360,12.70515668,194.51,194.43,12.70515668]
[1735677753772,12.70515668,194.51,194.46,20.0]
[1735677754384,12.70515668,194.5,194.46,20.0]
[1735677754583,12.70515668,194.5,194.43,12.70515668]
[1735677754868,12.70515668,194.5,194.46,20.0]
[1735677755274,12.70515668,194.49,194.46,20.0]
[1735677755681,12.70515668,194.49,194.45,20.0]
[1735677757290,1.6375,194.56,194.45,20.0]
[1735677757291,12.70515668,194.48,194.45,20.0]
[1735677757682,12.70515668,194.49,194.45,20.0]
[1735677758483,12.70515668,194.5,194.46,20.0]
[1735677758872,12.70515668,194.51,194.47,20.0]
[1735677759987,12.70515668,194.53,194.47,20.0]
[1735677760677,12.70515668,194.5,194.47,20.0]
[1735677760880,12.70515668,194.49,194.47,20.0]
[1735677761074,12.70515668,194.51,194.47,20.0]
[1735677761274,12.70515668,194.5,194.47,20.0]
[1735677762089,12.70515668,194.5,194.44,12.8569]
[1735677762598,12.70515668,194.51,194.47,20.0]
[1735677763392,12.70515668,194.55,194.47,12.70515668]
[1735677763605,12.70515668,194.55,194.5,20.0]
[1735677764005,12.70515668,194.55,194.49,20.0]
[1735677764192,12.70515668,194.54,194.5,20.0]
[1735677764683,12.70515668,194.54,194.49,20.0]
[1735677764882,12.70515668,194.54,194.5,20.0]
[1735677765805,12.70515668,194.57,194.51,20.0]
[1735677766099,12.70515668,194.59,194.51,32.70515668]
[1735677766475,12.70515668,194.58,194.51,32.70515668]
[1735677767232,1.6096,194.62,194.56,20.0]
[1735677767496,14.31475668,194.62,194.55,12.70515668]
[1735677767713,14.31475668,194.62,194.52,12.8516]
[1735677767714,12.70515668,194.61,194.54,12.70515668]
[1735677767872,12.70515668,194.61,194.57,20.0]
[1735677769812,12.70515668,194.61,194.53,23.776884]
[1735677769813,12.70515668,194.61,194.56,20.0]
[1735677770681,12.70515668,194.6,194.56,20.0]
[1735677770887,12.70515668,194.6,194.53,12.70515668]
[1735677770888,12.70515668,194.59,194.55,20.0]
[1735677771413,12.70515668,194.58,194.52,20.0]
[1735677771617,12.70515668,194.59,194.54,20.0]
[1735677772118,12.70515668,194.6,194.56,20.0]
[1735677772320,12.70515668,194.59,194.56,20.0]
[1735677772620,12.70515668,194.6,194.56,20.0]
[1735677773912,14.31475668,194.62,194.54,32.70515668]
[1735677774498,12.70515668,194.61,194.54,32.70515668]
[1735677774700,12.70515668,194.6,194.56,20.0]
[1735677776428,12.70515668,194.61,194.56,20.0]
[1735677776931,12.8419,194.68,194.56,12.70515668]
[1735677776932,12.70515668,194.63,194.56,12.70515668]
[1735677777100,12.70515668,194.64,194.57,25.55395668]
[1735677777302,12.70515668,194.66,194.59,12.70515668]
[1735677777709,14.25315668,194.67,194.61,20.0]
[1735677779044,6.1661,194.68,194.63,20.0]
[1735677779045,12.70515668,194.68,194.63,20.0]
[1735677779357,14.23385668,194.73,194.66,12.70515668]
[1735677779630,12.70515668,194.75,194.67,12.70515668]
[1735677780733,12.70515668,194.74,194.67,12.70515668]
[1735677781347,12.70515668,194.73,194.66,12.70515668]
[1735677781543,12.70515668,194.73,194.66,36.48204068]
[1735677782247,12.70515668,194.73,194.66,12.70515668]
[1735677782453,12.70515668,194.71,194.63,12.70515668]
[1735677782642,12.70515668,194.71,194.63,36.48204068]
[1735677782848,12.70515668,194.73,194.66,12.70515668]
[1735677783035,12.70515668,194.75,194.67,12.70515668]
[1735677784259,12.70515668,194.74,194.66,36.48204068]
[1735677784559,12.70515668,194.74,194.67,12.70515668]
[1735677784760,12.70515668,194.72,194.66,23.776884]
[1735677784938,12.70515668,194.73,194.66,36.48204068]
[1735677785141,12.70515668,194.74,194.67,12.70515668]
[1735677787759,12.70515668,194.74,194.66,36.48204068]
[1735677787936,12.70515668,194.71,194.65,20.0]
[1735677788361,12.70515668,194.72,194.65,32.70515668]
[1735677789360,12.70515668,194.73,194.66,36.48204068]
[1735677789566,12.70515668,194.74,194.67,12.70515668]
[1735677790089,1.5287,194.77,194.66,36.48204068]
[1735677790090,12.70515668,194.73,194.66,36.48204068]
[1735677790875,12.70515668,194.72,194.65,32.70515668]
[1735677791079,12.70515668,194.71,194.65,20.0]
[1735677791490,23.776884,194.76,194.65,20.0]
[1735677791690,12.70515668,194.71,194.65,20.0]
[1735677791985,12.70515668,194.72,194.65,20.0]
[1735677797391,12.70515668,194.72,194.65,32.70515668]
[1735677797633,12.70515668,194.69,194.62,12.70515668]
[1735677797792,12.70515668,194.68,194.61,31.59645668]
[1735677798099,12.70515668,194.69,194.62,12.70515668]
[1735677798295,12.70515668,194.7,194.63,12.70515668]
[1735677798500,12.70515668,194.71,194.64,12.70515668]
[1735677799627,12.70515668,194.73,194.65,12.70515668]
[1735677799822,12.70515668,194.74,194.67,12.70515668]
[1735677801536,12.70515668,194.73,194.66,25.54785668]
[1735677801733,12.70515668,194.73,194.65,20.0]
[1735677801734,12.70515668,194.71,194.65,12.70515668]
[1735677801939,12.70515668,194.72,194.65,12.70515668]
[1735677802430,12.70515668,194.73,194.66,12.70515668]
[1735677802638,12.70515668,194.74,194.67,12.70515668]
[1735677803235,12.70515668,194.75,194.68,14.29335668]
[1735677806236,8.12785491,194.75,194.68,9.71605491]
[1735677807145,8.12785491,194.76,194.69,8.12785491]
[1735677807346,8.12785491,194.75,194.69,8.12785491]
[1735677807552,8.12785491,194.75,194.68,9.71605491]
[1735677808665,8.12785491,194.75,194.69,8.12785491]
[1735677809246,8.12785491,194.75,194.68,9.71605491]
[1735677811642,8.13965083,194.83,194.72,8.12785491]
[1735677811955,8.12785491,194.81,194.75,8.12785491]
[1735677812141,8.12785491,194.82,194.75,8.12785491]
[1735677812343,8.12785491,194.81,194.75,8.12785491]
[1735677812555,8.12785491,194.81,194.74,8.12785491]
[1735677814950,8.12785491,194.8,194.74,8.12785491]
[1735677815662,8.12785491,194.81,194.74,8.12785491]
[1735677818262,8.12785491,194.8,194.73,8.12785491]
[1735677819351,8.12785491,194.79,194.72,20.96655491]
[1735677819670,1.6262,194.83,194.68,7.6733]
[1735677819671,8.12785491,194.77,194.73,20.0]
[1735677819879,8.12785491,194.76,194.69,8.12785491]
[1735677820107,8.12785491,194.73,194.68,7.6733]
[1735677820390,8.12785491,194.73,194.68,1.5882]
[1735677821090,8.12785491,194.74,194.69,20.0]
[1735677821486,8.12785491,194.76,194.69,28.12785491]
[1735677821672,8.12785491,194.77,194.69,28.12785491]
[1735677821876,8.12785491,194.77,194.7,8.12785491]
[1735677822261,8.12785491,194.76,194.69,28.12785491]
[1735677827095,8.12785491,194.77,194.7,8.12785491]
[1735677827304,8.12785491,194.78,194.71,8.12785491]
[1735677827597,8.12785491,194.78,194.7,8.12785491]
[1735677827787,8.12785491,194.77,194.7,8.12785491]
[1735677828097,8.12785491,194.77,194.69,28.12785491]
[1735677828303,8.12785491,194.77,194.7,8.12785491]
[1735677828673,8.12785491,194.77,194.69,28.12785491]
[1735677828879,8.12785491,194.76,194.69,28.12785491]
[1735677829412,8.12785491,194.78,194.7,8.12785491]
[1735677829575,8.12785491,194.8,194.72,8.12785491]
[1735677830700,8.12785491,194.79,194.72,8.12785491]
[1735677831412,8.12785491,194.78,194.71,14.21425491]
[1735677833501,8.12785491,194.79,194.72,8.12785491]
[1735677836435,20.0,194.81,194.72,8.12785491]
[1735677836727,8.12785491,194.79,194.72,8.12785491]
[1735677838115,8.12785491,194.77,194.71,6.0864]
[1735677838307,8.12785491,194.78,194.71,6.0864]
[1735677843823,8.12785491,194.78,194.71,14.21425491]
[1735677845829,8.12785491,194.76,194.71,6.0864]
[1735677846031,8.12785491,194.75,194.68,9.71605491]
[1735677846340,8.12785491,194.74,194.68,1.5882]
[1735677847116,8.12785491,194.74,194.7,20.0]
[1735677847312,8.12785491,194.74,194.68,1.5882]
[1735677847532,8.12785491,194.73,194.68,1.5882]
[1735677848033,8.12785491,194.73,194.69,20.0]
[1735677848614,8.12785491,194.74,194.69,20.0]
[1735677851115,8.12785491,194.75,194.69,20.0]
[1735677852031,23.776884,194.79,194.69,20.0]
[1735677852228,8.12785491,194.74,194.69,20.0]
[1735677852614,8.12785491,194.73,194.69,20.0]
[1735677853942,8.12785491,194.7,194.63,8.12785491]
[1735677854432,8.12785491,194.71,194.64,8.12785491]
[1735677857541,8.12785491,194.7,194.64,8.12785491]
[1735677859247,8.12785491,194.7,194.63,8.12785491]
[1735677860328,8.12785491,194.69,194.63,8.12785491]
[1735677860638,8.12785491,194.68,194.62,8.084]
[1735677860954,8.12785491,194.67,194.62,8.084]
[1735677862243,8.12785491,194.68,194.62,8.084]
[1735677862950,8.12785491,194.67,194.62,8.084]
[1735677863322,8.12785491,194.68,194.62,8.084]
[1735677865545,8.12785491,194.67,194.62,1.583]
[1735677865841,8.12785491,194.69,194.62,9.71085491]
[1735677866730,23.776884,194.71,194.62,9.71085491]
[1735677866731,8.12785491,194.68,194.62,1.583]
[1735677868637,8.12785491,194.67,194.59,8.12785491]
[1735677870651,8.12785491,194.67,194.6,8.12785491]
[1735677871860,8.12785491,194.66,194.59,8.12785491]
[1735677872860,8.12785491,194.65,194.58,14.30925491]
[1735677873157,8.12785491,194.67,194.59,8.12785491]
[1735677873447,8.12785491,194.67,194.6,8.12785491]
[1735677875056,8.12785491,194.68,194.61,8.12785491]
[1735677876764,8.12785491,194.65,194.58,6.1814]
[1735677877067,8.12785491,194.64,194.58,6.1814]
[1735677879463,23.776884,194.67,194.58,6.1814]
[1735677879464,23.776884,194.67,194.58,14.30925491]
[1735677879763,8.12785491,194.65,194.58,14.30925491]
[1735677880469,8.12785491,194.66,194.58,14.30925491]
[1735677882870,12.8412,194.69,194.58,14.30925491]
[1735677882871,8.12785491,194.65,194.58,14.30925491]
[1735677883276,23.776884,194.68,194.57,1.5417]